Cogmind - Beta 15 @@@ ROGUE MODE // 2025.07.05 @ 18:51:17 Player: cloodskull Result: Destroyed by S-27 Virus with Autogun Performance ------------- Evolutions (1) 500 Regions Visited (5) 1000 Robots Destroyed (26) 130 Value Destroyed (727) 727 Prototype IDs (1) 20 Alien Tech Used (0) 0 Bonus (696) 696 TOTAL SCORE: 3073 Bonus ------- Follower Combat Kills 228 Met Imprinter 300 Was Imprinted 300 Friendly Fire -132 Cogmind --------- Core Integrity 0/400 Matter 285/300 Energy 26/100 System Corruption 0% Temperature Cool (0) Movement Core (50) Location -6/Proximity Caves Parts ------- > --- POWER (1) -------- (None) > --- PROPULSION (2) --- (None) > --- UTILITY (3) ------ (None) > --- WEAPON (3) ------- (None) > --- INVENTORY (5) ---- Weapon Cycler Hacking Drone Bay Bomb Factory No. 2 Peak State ------------ > --- POWER ------------ Ion Engine > --- PROPULSION ------- Aluminum Leg Carbon-fiber Leg > --- UTILITY ---------- Large Storage Unit Medium Matter Pod Core Shielding > --- WEAPON ----------- Small Laser Plasma Rifle > --- INVENTORY -------- Spiked Treads Heat Sink Signal Interpreter Terrain Scanner Weapon Cycler Cloaking Device Authchip [R/Combat] Hacking Drone Bay Bomb Factory No. 2 Mining Laser [Rating: 18] Favorites ----------- Power Ion Engine Engine Ion Engine Propulsion Aluminum Leg Leg Aluminum Leg Wheel Wheel Utility Large Storage Unit Device Heat Sink Storage Large Storage Unit Protection Core Shielding Weapon Light Cannon Energy Gun Small Laser Ballistic Gun Light Assault Rifle Ballistic Cannon Light Cannon Launcher Grenade Launcher Special Weapon RU-N14's Throwing Claymores Build | -11 -10 -9 -9 -7 -6 ------- Run | Yrd Mat Mat Min Zio Pro Slots Evolved 2 | . . 2 . . . Power . | . . . . . . Propulsion . | . . . . . . Utility 1 | . . 1 . . . Weapon 1 | . . 1 . . . Parts Attached 25 | 5 4 6 . 2 8 Power 2 | 1 . 1 . . . Engine 2 | 1 . 1 . . . Core . | . . . . . . Reactor . | . . . . . . Propulsion 6 | 2 . 1 . 2 1 Treads . | . . . . . . Leg 3 | . . . . 2 1 Wheel 3 | 2 . 1 . . . Hover . | . . . . . . Flight . | . . . . . . Utility 9 | . 3 2 . . 4 Device 6 | . 2 1 . . 3 Storage 2 | . 1 . . . 1 Processor . | . . . . . . Hackware . | . . . . . . Protection 1 | . . 1 . . . Artifact . | . . . . . . Weapon 8 | 2 1 2 . . 3 Energy Gun 3 | 2 . . . . 1 Energy Cannon . | . . . . . . Ballistic Gun 1 | . 1 . . . . Ballistic Cannon 2 | . . 2 . . . Launcher 1 | . . . . . 1 Special Weapon 1 | . . . . . 1 Impact Weapon . | . . . . . . Slashing Weapon . | . . . . . . Piercing Weapon . | . . . . . . Special Melee Weapon . | . . . . . . Unidentified Prototypes 1 | . . . . . 1 Parts Lost 10 | . . 4 . . 6 Power 1 | . . . . . 1 Propulsion 2 | . . 1 . . 1 Utility 3 | . . 2 . . 1 Weapon 4 | . . 1 . . 3 Highest Loss Streak 3 | . . 3 . . 3 To Critical Strikes . | . . . . . . Average Backups 8 | 1 6 7 9 9 8 Power . | . . . . . . Propulsion . | 1 2 2 2 . . Utility 5 | . 1 3 4 6 6 Weapon 2 | . 3 2 3 3 1 Tool/Special . | . . . . . . Unused Backups 7 | . . 1 . . 6 Power . | . . . . . . Propulsion . | . . . . . . Utility 6 | . . 1 . . 5 Weapon 1 | . . . . . 1 Tool/Special . | . . . . . . Average Slot Usage (%) 93 | . 98 95 100 100 75 Engine 10 | . 14 11 11 11 9 Leg 16 | . . . . 21 17 Wheel 4 | . 28 21 22 . . Device 10 | . 14 12 11 11 7 Storage 10 | . 12 11 11 11 10 Protection 9 | . . 5 11 11 9 Energy Gun 11 | . 14 12 11 11 11 Ballistic Gun 1 | . 13 1 . . . Ballistic Cannon 16 | . . 18 22 22 7 Peak Build Rating 18 | 5 8 10 9 13 18 Average Rating 10 | 3 6 8 9 11 13 On Entrance 7 | . 5 8 9 9 13 Naked Turns 90 | . . . . . 90 Heaviest Build 36 | 5 26 35 34 34 36 Greatest Support 25 | 20 20 20 20 20 25 Greatest Overweight (x) 3 | . 1 2 1 1 3 Average Overweight (x) . | . . 1 1 1 . Largest Inventory Capacity 15 | 5 15 15 15 15 15 Average Capacity 14 | 5 14 15 15 15 13 Most Carried 13 | 5 10 10 9 13 13 Average Carried 9 | 2 6 7 9 9 9 Final Capacity 15 | 5 15 15 15 15 5 Final Carried 13 | 4 10 9 9 13 4 Class Distribution -------------------- 74% | Tank 18% | Mutant 5% | Scavenger-Mutant Dominant Class ---------------- Mutant | -10/Materials Tank | -9/Materials Tank | -9/Mines Tank | -7/Zion Mutant | -6/Proximity Caves Resources | -11 -10 -9 -9 -7 -6 ----------- Run | Yrd Mat Mat Min Zio Pro Matter Collected 846 | 250 53 280 . 128 135 Remotely . | . . . . . . Salvage Created 643 | 47 122 209 . . 265 Parts 45 | 2 8 21 . . 14 Haulers Intercepted . | . . . . . . Recyclers Shooed . | . . . . . . Parts Field Recycled . | . . . . . . Retrieved Matter . | . . . . . . Parts Self-Destructed 24 | . . . . . 24 Prevented 2 | . . . . . 2 Kills | -11 -10 -9 -9 -7 -6 ------- Run | Yrd Mat Mat Min Zio Pro Combat Hostiles Destroyed 22 | 1 3 10 . . 8 Guns 6 | 1 3 2 . . . Cannons 10 | . . 8 . . 2 AOE 5 | . . . . . 5 Classes Destroyed 8 | 1 . 5 . . 2 Builder 1 | . . 1 . . . Watcher 2 | . . 2 . . . Swarmer 10 | . . 7 . . 3 Grunt 9 | 1 3 1 . . 4 Duelist 1 | . . 1 . . . Sentry 1 | . . 1 . . . Programmer 1 | . . . . . 1 Mutant 1 | . . . . . 1 Best Kill Streak 5 | 1 2 5 . . 5 Combat Bots Only 5 | 1 2 4 . . 5 Max Kills in Single Turn 2 | 1 1 2 . . 2 Gunslinging . | . . . . . . Exploded 2 | . . . . . 2 Melee . | . . . . . . Uniques/NPCs Destroyed . | . . . . . . Combat | -11 -10 -9 -9 -7 -6 -------- Run | Yrd Mat Mat Min Zio Pro Hostile Shots Fired 185 | 3 19 57 . . 106 Missed 76 | . 8 19 . . 49 Hits 109 | 3 11 38 . . 57 Melee 5 | . . 5 . . . Projectile 104 | 3 11 33 . . 57 Critical Strikes 5 | . . 4 . . 1 Damage Taken 1507 | 31 120 397 . . 959 Core 443 | 20 21 63 . . 339 Absorbed by Shields 61 | . . 61 . . . Redirected to Shielding 11 | . . 2 . . 9 Core Remaining (%) 87 | 92 83 . . . . Volleys Fired 66 | 2 13 29 . 1 21 Largest 3 | 2 2 3 . 3 3 Hottest 115 | 80 60 100 . 100 115 Shots Fired 162 | 4 26 84 . 3 45 Gun 91 | 4 26 35 . 1 25 Cannon 66 | . . 49 . 2 15 Launcher 2 | . . . . . 2 Special 3 | . . . . . 3 Kinetic 83 | . 13 53 . 2 15 Thermal 74 | 4 13 31 . 1 25 Explosive 5 | . . . . . 5 Electromagnetic . | . . . . . . Robot Hit Streak 9 | 3 6 9 . . 3 Robot Miss Streak 10 | 1 3 9 . . 10 Penetration Max . | . . . . . . Secondary Targets . | . . . . . . Shots Hit Robots 69 | 3 15 32 . . 19 Core Hits 47 | 2 6 16 . . 23 Critical Kills . | . . . . . . Critical Parts Destroyed . | . . . . . . Critical Strikes 3 | . . 1 . . 2 Burn 2 | . . . . . 2 Blast 1 | . . 1 . . . Melee Attacks . | . . . . . . Impact . | . . . . . . Slashing . | . . . . . . Piercing . | . . . . . . Sneak Attacks . | . . . . . . Combat Hostiles . | . . . . . . Follow-up Attacks . | . . . . . . Damage Inflicted 1815 | 31 157 500 . . 1127 Guns 572 | 31 157 197 . . 187 Cannons 441 | . . 303 . . 138 Explosions 731 | . . . . . 731 Melee . | . . . . . . Ramming . | . . . . . . Kinetic 538 | . 68 332 . . 138 Thermal 475 | 31 89 168 . . 187 Explosive 731 | . . . . . 731 Electromagnetic . | . . . . . . Impact . | . . . . . . Slashing 71 | . . . . . 71 Piercing . | . . . . . . Highest Corruption 4 | . 1 4 4 4 . Average Corruption 3 | . 1 3 4 4 . Corruption Purged . | . . . . . . Corruption Blocked . | . . . . . . Effects 5 | . . 4 . 1 . Heat Flow Errors 1 | . . . . 1 . Energy Discharges 2 | . . 2 . . . Data Loss (minor) 1 | . . 1 . . . Weapon Failures 1 | . . 1 . . . Overload Shots . | . . . . . . Overflow Damage 33 | . . 33 . . . Projectiles 33 | . . 33 . . . Explosions . | . . . . . . Melee . | . . . . . . Knockbacks 4 | . . 3 . . 1 Impact . | . . . . . . Kinetic 4 | . . 3 . . 1 Secondary . | . . . . . . Self-Inflicted Damage 35 | . . . . . 35 Shots 1 | . . . . . 1 Rammed . | . . . . . . Targets Rammed . | . . . . . . Kicked . | . . . . . . Crushed . | . . . . . . Highest Temperature 223 | 48 70 65 . 223 208 Average Temperature 53 | 27 30 33 . 124 74 Received Heat Transfer 313 | 18 66 25 . . 204 Siege Activations . | . . . . . . Martial Activations . | . . . . . . Shielding Activations . | . . . . . . Robots Disrupted . | . . . . . . Combat Hostiles . | . . . . . . Robots Corrupted . | . . . . . . Combat Hostiles . | . . . . . . Parts Fried . | . . . . . . Impact Corruptions . | . . . . . . Robots Melted 1 | . . . . . 1 Combat Hostiles 1 | . . . . . 1 Parts Melted . | . . . . . . Heat Transferred 1250 | 75 200 375 . . 600 Parts Sabotaged . | . . . . . . Parts Stolen . | . . . . . . Parts Stripped . | . . . . . . Power Chain Reactions . | . . . . . . Alert | -11 -10 -9 -9 -7 -6 ------- Run | Yrd Mat Mat Min Zio Pro Maximum Alert Level . | . . . . . . Low Security (%) 100 | 100 100 100 100 . . Level 1 . | . . . . . . Level 2 . | . . . . . . Level 3 . | . . . . . . Level 4 . | . . . . . . Level 5 . | . . . . . . High Security . | . . . . . . Max Security . | . . . . . . Peak Influence 153 | 20 40 153 42 . . Initial 42 | . 6 8 42 . . Average 44 | 3 10 74 42 . . Influence Increases 837 | 20 80 290 . . 447 Destroy 0b10 Robot/C 580 | 20 60 200 . . 300 Destroy 0b10 Robot/NC 15 | . . 15 . . . Destroy Leader 94 | . 20 44 . . 30 Allied During Kill 42 | . . . . . 42 Destroy Structure 1 | . . 1 . . . Lose Combat Pursuer 105 | . . 30 . . 75 Influence Decreases 788 | 10 70 200 68 42 398 Entered New Map 126 | . 4 12 68 42 . Time Decay 542 | 10 66 168 . . 298 Lost Part 80 | . . 20 . . 60 Lost Ally 40 | . . . . . 40 Squads Dispatched 2 | . 2 . . . . Investigation 1 | . 1 . . . . Extermination . | . . . . . . Reinforcement 1 | . 1 . . . . Assault . | . . . . . . Garrison . | . . . . . . Intercept . | . . . . . . Searches Triggered . | . . . . . . Construction Impeded . | . . . . . . Haulers Reinforced . | . . . . . . Active Scanning Responses . | . . . . . . Cargo Convoy Interrupts . | . . . . . . Stealth | -11 -10 -9 -9 -7 -6 --------- Run | Yrd Mat Mat Min Zio Pro Distress Signals 1 | . 1 . . . . Communications Jammed . | . . . . . . Distress Signals . | . . . . . . Times Spotted 50 | 1 3 16 2 . 28 Peak Tracking Total 8 | 1 2 4 2 . 8 Tactical Retreats 3 | . . 2 . . 1 Traps | -11 -10 -9 -9 -7 -6 ------- Run | Yrd Mat Mat Min Zio Pro Traps Triggered 4 | . 1 3 . . . Indirectly . | . . . . . . Trap Hack Attempts . | . . . . . . Triggered . | . . . . . . Disarmed . | . . . . . . Reprogrammed . | . . . . . . Reused . | . . . . . . Traps Extracted . | . . . . . . Installed . | . . . . . . Triggered . | . . . . . . Machines | -11 -10 -9 -9 -7 -6 ---------- Run | Yrd Mat Mat Min Zio Pro Machines Disabled . | . . . . . . Max in Single Turn . | . . . . . . Machines Repaired . | . . . . . . Machines Dismantled . | . . . . . . Machines Sabotaged . | . . . . . . Overloaded Fab Kills . | . . . . . . Hacking | -11 -10 -9 -9 -7 -6 --------- Run | Yrd Mat Mat Min Zio Pro Machines Accessed 1 | . 1 . . . . Terminals 1 | . 1 . . . . Fabricators . | . . . . . . Repair Stations . | . . . . . . Recycling Units . | . . . . . . Scanalyzers . | . . . . . . Garrison Access . | . . . . . . Total Hacks 4 | . 4 . . . . Successful 2 | . 2 . . . . Failed 2 | . 2 . . . . Catastrophic . | . . . . . . Database Lockouts . | . . . . . . Manual . | . . . . . . Terminals 4 | . 4 . . . . Fabricators . | . . . . . . Repair Stations . | . . . . . . Recycling Units . | . . . . . . Scanalyzers . | . . . . . . Garrison Access . | . . . . . . Terminal Hacks 2 | . 2 . . . . Record 1 | . 1 . . . . Alert Level 1 | . 1 . . . . Fabricator Hacks . | . . . . . . Repair Station Hacks . | . . . . . . Recycling Unit Hacks . | . . . . . . Scanalyzer . | . . . . . . Garrison Access Hacks . | . . . . . . Unauthorized Hacks . | . . . . . . Terminals . | . . . . . . Fabricators . | . . . . . . Repair Stations . | . . . . . . Recycling Units . | . . . . . . Scanalyzers . | . . . . . . Garrison Access . | . . . . . . Data Cores Recovered . | . . . . . . Used . | . . . . . . Hacking Detections 1 | . 1 . . . . Full Trace Events 1 | . 1 . . . . Feedback Events . | . . . . . . Feedback Blocked . | . . . . . . Robot Schematics Acquired . | . . . . . . Robots Built . | . . . . . . Authchips . | . . . . . . Time . | . . . . . . Total Robot Build Rating . | . . . . . . Part Schematics Acquired . | . . . . . . Parts Built . | . . . . . . Authchips . | . . . . . . Time . | . . . . . . Total Part Build Rating . | . . . . . . Parts Repaired . | . . . . . . Time . | . . . . . . Parts Recycled . | . . . . . . Recycled Matter . | . . . . . . Retrieved Matter . | . . . . . . Retrieved Components . | . . . . . . Parts Scanalyzed . | . . . . . . Part Schematics Acquired . | . . . . . . Parts Damaged . | . . . . . . Bothacking | -11 -10 -9 -9 -7 -6 ------------ Run | Yrd Mat Mat Min Zio Pro Used RIF Installer . | . . . . . . Robots Hacked . | . . . . . . Non-combat . | . . . . . . Combat . | . . . . . . Robot Hacks Applied . | . . . . . . Relay Couplers Released . | . . . . . . Fabnet Peak Effective % . | . . . . . . Robots Rewired . | . . . . . . Allies Hacked . | . . . . . . Hacks Repelled . | . . . . . . Allies | -11 -10 -9 -9 -7 -6 -------- Run | Yrd Mat Mat Min Zio Pro Total Allies 6 | . . . . 6 . Largest Group 6 | . . . . 6 3 Highest-Rated Group 206 | . . . . 206 105 Highest-Rated Ally 41 | . . . . 41 41 Total Orders . | . . . . . . Ally Attacks 46 | . . . . . 46 Total Damage 887 | . . . . . 887 Kills 7 | . . . . . 7 Allies Corrupted . | . . . . . . Allies Melted . | . . . . . . Intel | -11 -10 -9 -9 -7 -6 ------- Run | Yrd Mat Mat Min Zio Pro Active Infowar (turns) 162 | . 72 47 . . 43 Terrain 119 | . 72 47 . . . Cloaking 43 | . . . . . 43 Robot Analysis Total . | . . . . . . Derelict Logs Recovered 2 | . . . . 2 . Drone Launches . | . . . . . . Drone Recoveries . | . . . . . . Exploration | -11 -10 -9 -9 -7 -6 ------------- Run | Yrd Mat Mat Min Zio Pro Turns Passed 3618 | 84 228 367 3 2144 792 Spaces Moved 2094 | 92 168 205 2 1052 575 Core 310 | 31 . . . . 279 Treads . | . . . . . . Legs 1308 | . . . . 1012 296 Wheels 476 | 61 168 205 2 40 . Hover . | . . . . . . Flight . | . . . . . . Fastest Speed 50 | 50 80 95 95 95 50 Average Speed 147 | 69 94 95 95 186 122 Slowest Speed 330 | 80 95 110 95 190 330 Overloaded Moves . | . . . . . . Propulsion Burnouts . | . . . . . . Robots Hopped . | . . . . . . Potential Cave-ins . | . . . . . . Cave-ins Triggered . | . . . . . . Exploration Rate (%) 35 | 9 28 18 5 88 67 Regions Visited 5 Branch Regions 3 Pre-discovered Areas 1 | . . . . 1 . Known Exits Taken . | . . . . . . Unknown Exits Taken 5 | 1 1 1 1 1 . Scrap Searched 3 | . . . . 2 1 Spaces Dug . | . . . . . . Terrain Destroyed 52 | . . . . . 52 Melee . | . . . . . . Projectile 1 | . . . . . 1 AOE 51 | . . . . . 51 Terrain Rammed . | . . . . . . Walls Destroyed . | . . . . . . Machines Disabled . | . . . . . . Actions | -11 -10 -9 -9 -7 -6 --------- Run | Yrd Mat Mat Min Zio Pro Total 2493 | 107 213 313 3 1234 623 Wait 265 | . 21 59 2 173 10 Move 2089 | 91 167 204 1 1051 575 Hop . | . . . . . . Pick Up 34 | 9 8 8 . 5 4 Fast Attach . | . . . . . . Attach 26 | 5 2 8 . 2 9 Detach 3 | . . 1 . . 2 Swap 4 | . 2 2 . . . Drop 6 | . . 2 . 2 2 Fire 66 | 2 13 29 . 1 21 Melee . | . . . . . . Ram . | . . . . . . Kick . | . . . . . . Crush . | . . . . . . Escape Stasis . | . . . . . . Rewire . | . . . . . . Trap . | . . . . . . Miscellaneous . | . . . . . . Route ------- -11/Scrapyard -10/Materials -9/Materials -9/Mines -7/Zion -6/Proximity Caves History --------- Turn | Location | Event 2 | -11/Scrapyard | Met Revision 17 59 | -11/Scrapyard | Discovered new exit (range 8) 85 | -11/Scrapyard | Entered Materials 283 | -10/Materials | Discovered new exit (range 15) 300 | -10/Materials | Build established: Mutant 313 | -10/Materials | Entered another Materials area 313 | -9/Materials | Evolved 2 slots: Utility x1, Weapon x1 404 | -9/Materials | Lost 3 parts (1n1u1w) 658 | -9/Materials | Discovered new exit (range 14) 680 | -9/Materials | Entered Mines 681 | -9/Mines | A Derelict revealed a hidden shortcut to a safe place 683 | -9/Mines | Entered Zion 727 | -7/Zion | System corruption cleaned by Quarantine Array 836 | -7/Zion | Given the Hacking Drone Bay 843 | -7/Zion | Found Prototype Device 859 | -7/Zion | Discovered new exit (range 12) 883 | -7/Zion | Build established: Tank 1244 | -7/Zion | Gained Derelict followers 1377 | -7/Zion | Met Imprinter 1417 | -7/Zion | Imprinted 1419 | -7/Zion | Declared Zion's savior 1972 | -7/Zion | Learned Factory emergency access door positions 2018 | -7/Zion | Learned Factory stockpile data 2061 | -7/Zion | Found Prototype Device 2365 | -7/Zion | Learned location of Extension (-4) 2749 | -7/Zion | Found Prototype Special Weapon 2827 | -7/Zion | Entered Proximity Caves 2827 | -6/Proximity Caves | Accompanied by 3 allies 2873 | -6/Proximity Caves | Attracted the attention of an 0b10 checkpoint 3091 | -6/Proximity Caves | Identified RU-N14's Throwing Claymores 3114 | -6/Proximity Caves | Lost 3 parts (3w) 3475 | -6/Proximity Caves | Spotted B-75 Beast 3477 | -6/Proximity Caves | Released all parts (7) 3589 | -6/Proximity Caves | Entered a huge 0b10 base via the front door 3591 | -6/Proximity Caves | Spotted B-75 Beast 3592 | -6/Proximity Caves | Core integrity fell below 50% 3603 | -6/Proximity Caves | Core integrity fell below 20% 3619 | -6/Proximity Caves | Destroyed by S-27 Virus with Autogun Last Messages --------------- You have activated Keyboard Mode (toggled via F2 or the Options menu), which hides your mouse cursor and enables keyboard-controlled map look functionality. For hardcore keyboard-only players. 03477_ Released Med. Matter Pod. 03477_ Released Carbon-fiber Leg. 03477_ Released Sml. Laser. 03477_ Released Lrg. Storage Unit. 03477_ Released Core Shielding. 03477_ Released Aluminum Leg. 03477_ Released Plasma Rifle. 03528_ XU-5ZJ(k) breaks down the debris. 03592_ Y-54 Guardian: "UNAUTHORIZED DERELICT IN 0B10 PROXIMITY. ENGAGING." 03602_ C-30 ARC bursts open, deploying its payload. 03602_ S-27 Virus unfolds itself. 03606_ Cloaking Device destroyed. [Achievement: First Step to Greatness] Map ----- +----------------------------------------------------+ | | | | | | | ?????????????????????????????????????????????????? | | ?????????????????????????????????????????????????? | | ?????????????????????????????????????????????????? | | ?????????????????????????????????????????????????? | | ?????????????????????????????????????????????????? | | ?????????????????????????????????????????????????? | | ?????????????????????????????????????????????????? | | ?????????????????????????????????????????????????? | | ?????????????????????????????????????????????????? | | ?????????????????????????????????????????????????? | | ?????????????????????????????????????????????????? | | ?????????????????????????????????????????????????? | | ?????????????????????????????????????????????????? | | ?????????????????????????????????????????????????? | | ?????????????????????????????????????????????????? | | ?????????????????????????????????????????????????? | | ?????????????????????????????????????????????????? | | ?????????#####################???????????????????? | | ????????? " " " " #???????????????????? | | ????????# " " " " #???????????????????? | | ????????# " " " " ss #???????????????????? | | ????????? " " " " ## #####+##???????????????? | | ?????????"""" " " s @ ????????? | | ?????????"""" ????????? | | ????????#"""" ????????? | | ????????#"""" ## ###### ###+####?????????? | | ????????#"""" #? #????????????????? | | ????????# """ #??#????????????????? | | ????????#"""" #???????????????????? | | ????????# " # + #???????????????????? | | ????????# " # # " "#??#????????????????? | | ????????#"" # # R # "Y"#? #????????????????? | | ????????#"" # # #?"""#" #????????????????? | | ????????###### # ######?####%"######???????????? | | ?????????????# # ?????? " ????????????? | | ?????????????# # "????? ?????????????? | | ?????????????# # ""???? ?????????????? | | ?????????????# #!!! ????? ???????????????? | | ?????????????# ########## """"????????????????? | | ?????????????# """"????????????????? | | ?????????????# """"????????????????? | | ?????????????# ########## """"????????????????? | | ????????###### #####????? ??????????????? | | ????????# #?????? ????????????? | | ????????# ##????? #???????????? | | ######### #?????? #???????????? | | / ##??????### ## ###???????????? | +----------------------------------------------------+ Best States ------------- Heat Dissipation 38 Energy Generation 10 Energy Capacity 250 Matter Stores 400 Matter Capacity 400 Sight Range 16 Terrain Scan Range 14 Terrain Scan Density 10 Cloak Strength 2 Core Shielding 20 Evasion (%) 50 Authchip Count 1 Item Schematics ----------------- None Robot Schematics ------------------ None Fabricated ------------ Nothing Repaired ---------- Nothing Alien Tech Used ----------------- None Achievements -------------- Backstab First Step to Greatness It's Just You One Hack Too Far Risk Taker Robot Respite Storm Trooper The More The Merrier The One Tourist Uninvited Guest Challenges ------------ None Game ------ Seed DimensionalGhostTreads Manual? 0 Play Time 01:01:07 Cumulative 0.9 hours Start 2025.07.05 @ 17:47:34 End 2025.07.05 @ 18:51:17 Sessions 1 Manual Loads 0 Difficulty Rogue Special Mode None Game No. 2 Rogue 2 Adventurer 0 Explorer 0 Win Type - Total 0 Types 0/0/0/0/0/0/0/0/0/0 Lore% 2 Gallery% 1 Achievement% 4 Wizard Run 0 Options --------- Layout 1 ASCII 0 Keyboard 0 Movement Numpad Keybinds 0 Fullscreen 1 Font 24/X11 Map View 50x35 Zoom Use 0% Tactical HUD 1 Map Filters NONE Filters NONE Steam 1 RUN: 8b8dd989-edbb-44f0-aacd-6df21ad165d0